fUSD/lending_fUSD_20250826
["ID","MTS","AMOUNT","RATE_DAILY","PERIOD"]
[381513796,1756241535105,-1172.73,0.00028219,5]
[381513797,1756241535115,-400.0,0.00028219,5]
[381513798,1756241535124,-400.0,0.00028219,5]
[381513799,1756241535133,-1117.4,0.00028219,5]
[381513800,1756241535143,-400.0,0.00028219,5]
[381513801,1756241535153,-664.56,0.00028219,5]
[381513802,1756241535162,-400.0,0.00028219,5]
[381513803,1756241535171,-496.96,0.00028219,5]
[381513804,1756241535181,-1100.12,0.00028219,5]
[381513805,1756241535190,-653.72,0.00028219,5]
[381513806,1756241535200,-1446.06,0.00028219,5]
[381513807,1756241535209,-969.98,0.00028219,5]
[381513808,1756241535219,-574.95,0.00028219,5]
[381513809,1756241535228,-442.74,0.00028219,5]
[381513810,1756241535238,-853.57,0.00028219,5]
[381513811,1756241535248,-1125.75,0.00028219,5]
[381513812,1756241535258,-685.63,0.00028219,5]
[381513813,1756241535267,-998.74,0.00028219,5]
[381513814,1756241535276,-400.0,0.00028219,5]
[381513815,1756241535285,-404.72,0.00028219,5]
[381513816,1756241535296,-400.0,0.00028219,5]
[381513817,1756241535305,-1180.35,0.00028219,5]
[381513818,1756241535315,-400.0,0.00028219,5]
[381513819,1756241535324,-400.0,0.00028219,5]
[381513820,1756241535333,-1189.66,0.00028219,5]
[381513821,1756241535343,-1051.92,0.00028219,5]
[381513822,1756241535355,-859.33,0.00028219,5]
[381513823,1756241535363,-400.0,0.00028219,5]
[381513824,1756241535373,-792.85,0.00028219,5]
[381513825,1756241535382,-808.08,0.00028219,5]
[381513826,1756241535392,-661.89,0.00028219,5]
[381513827,1756241535401,-400.0,0.00028219,5]
[381513828,1756241535411,-446.02,0.00028219,5]
[381513829,1756241535420,-954.2,0.00028219,5]
[381513830,1756241535429,-685.86,0.00028219,5]
[381513831,1756241535439,-400.0,0.00028219,5]
[381513832,1756241535448,-400.0,0.00028219,5]
[381513833,1756241535457,-6344.64,0.00028219,5]
[381513834,1756241535467,-1152.14,0.00028219,5]
[381513835,1756241535475,-1598.25,0.00028219,5]
[381513836,1756241535485,-842.79,0.00028219,5]
[381513837,1756241535494,-818.38,0.00028219,5]
[381513838,1756241535503,-710.54,0.00028219,5]
[381513839,1756241535512,-400.0,0.00028219,5]
[381513840,1756241535521,-400.0,0.00028219,5]
[381513841,1756241535530,-1350.24,0.00028219,5]
[381513842,1756241535540,-545.69,0.00028219,5]
[381513843,1756241535549,-438.67,0.00028219,5]
[381513844,1756241535559,-639.919567,0.00028219,5]
[381513845,1756241535568,-892.98,0.00028219,5]
[381513846,1756241535577,-580.34,0.00028219,5]
[381513847,1756241535586,-400.0,0.00028219,5]
[381513848,1756241535595,-766.9,0.00028219,5]
[381513849,1756241535606,-1148.05,0.00028219,5]
[381513850,1756241535615,-548.93,0.00028219,5]
[381513851,1756241535624,-2369.71,0.00028219,5]
[381513852,1756241535633,-400.0,0.00028219,5]
[381513853,1756241535642,-400.0,0.00028219,5]
[381513854,1756241535652,-400.0,0.00028219,5]
[381513855,1756241535666,-490.0,0.00028219,5]
[381513856,1756241535675,-1019.5,0.00028219,5]
[381513857,1756241535684,-1094.01,0.00028219,5]
[381513858,1756241535694,-796.25,0.00028219,5]
[381513859,1756241535704,-976.55,0.00028219,5]
[381513860,1756241535714,-688.8,0.00028219,5]
[381513861,1756241535723,-400.0,0.00028219,5]
[381513862,1756241535732,-400.0,0.00028219,5]
[381513863,1756241535741,-1033.03,0.00028219,5]
[381513864,1756241535750,-555.58,0.00028219,5]
[381513865,1756241535760,-1340.92,0.00028219,5]
[381513866,1756241535769,-1212.21,0.00028219,5]
[381513867,1756241535780,-400.0,0.00028219,5]
[381513868,1756241535789,-400.0,0.00028219,5]
[381513869,1756241535799,-871.26,0.00028219,5]
[381513870,1756241535809,-1165.16,0.00028219,5]
[381513871,1756241535818,-698.17,0.00028219,5]
[381513872,1756241535828,-674.94,0.00028219,5]
[381513873,1756241535837,-986.96,0.00028219,5]
[381513874,1756241535846,-593.55,0.00028219,5]
[381513875,1756241535856,-1055.46,0.00028219,5]
[381513876,1756241535865,-400.0,0.00028219,5]
[381513877,1756241535874,-735.78,0.00028219,5]
[381513878,1756241535884,-1181.7,0.00028219,5]
[381513879,1756241535893,-758.31,0.00028219,5]
[381513880,1756241535902,-535.63,0.00028219,5]
[381513881,1756241535911,-400.0,0.00028219,5]
[381513882,1756241535920,-400.0,0.00028219,5]
[381513883,1756241535930,-201.44956188,0.00028219,5]
[381513884,1756241535939,-635.54,0.00028219,5]
[381513885,1756241535948,-400.0,0.00028219,5]
[381513886,1756241535957,-1082.46,0.00028219,5]
[381513887,1756241535967,-400.0,0.00028219,5]
[381513888,1756241535976,-400.0,0.00028219,5]
[381513889,1756241535985,-899.9,0.00028219,5]
[381513890,1756241535994,-837.57,0.00028219,5]
[381513891,1756241536004,-588.79,0.00028219,5]
[381513892,1756241536014,-1505.36,0.00028219,5]
[381513893,1756241536023,-496.25,0.00028219,5]
[381513894,1756241536032,-400.0,0.00028219,5]
[381513895,1756241536042,-977.39,0.00028219,5]
[381513896,1756241536051,-400.0,0.00028219,5]
[381513897,1756241536060,-1267.76,0.00028219,5]
[381513898,1756241536070,-400.0,0.00028219,5]
[381513899,1756241536079,-1126.33,0.00028219,5]
[381513900,1756241536087,-697.55,0.00028219,5]
[381513901,1756241536096,-597.34,0.00028219,5]
[381513902,1756241536106,-1188.43,0.00028219,5]
[381513903,1756241536115,-400.0,0.00028219,5]
[381513904,1756241536124,-400.0,0.00028219,5]
[381513905,1756241536133,-496.47,0.00028219,5]
[381513906,1756241536142,-858.27,0.00028219,5]
[381513907,1756241536152,-400.0,0.00028219,5]
[381513908,1756241536161,-1226.97,0.00028219,5]
[381513909,1756241536171,-1135.85,0.00028219,5]
[381513910,1756241536180,-906.3,0.00028219,5]
[381513911,1756241536190,-1304.68,0.00028219,5]
[381513912,1756241536199,-4387.96,0.00028219,5]
[381513913,1756241536209,-297.25907602,0.00028219,5]
[381513914,1756241536218,-636.55,0.00028219,5]
[381513915,1756241536227,-619.08,0.00028219,5]
[381513916,1756241536236,-400.0,0.00028219,5]
[381513917,1756241536246,-601.26,0.00028219,5]
[381513918,1756241536255,-400.0,0.00028219,5]
[381513919,1756241536265,-444.32940911,0.00028219,5]
[381513920,1756241536274,-400.0,0.00028219,5]
[381513921,1756241536283,-400.0,0.00028219,5]
[381513922,1756241536292,-400.0,0.00028219,5]
[381513923,1756241536302,-497.95,0.00028219,5]
[381513924,1756241536311,-653.61,0.00028219,5]
[381513925,1756241536320,-1224.95,0.00028219,5]
[381513926,1756241536329,-1282.75,0.00028219,5]
[381513927,1756241536338,-400.0,0.00028219,5]
[381513928,1756241536349,-400.0,0.00028219,5]
[381513929,1756241536358,-400.0,0.00028219,5]
[381513930,1756241536367,-400.0,0.00028219,5]
[381513931,1756241536376,-400.0,0.00028219,5]
[381513932,1756241536385,-527.3,0.00028219,5]
[381513933,1756241536399,-619.94,0.00028219,5]
[381513934,1756241536409,-400.0,0.00028219,5]
[381513935,1756241536419,-970.12,0.00028219,5]
[381513936,1756241536428,-1293.54,0.00028219,5]
[381513937,1756241536438,-400.0,0.00028219,5]
[381513938,1756241536447,-616.8,0.00028219,5]
[381513939,1756241536457,-1316.73,0.00028219,5]
[381513940,1756241536466,-400.0,0.00028219,5]
[381513941,1756241536475,-1322.59,0.00028219,5]
[381513942,1756241536485,-775.17,0.00028219,5]
[381513943,1756241536494,-916.29,0.00028219,5]
[381513944,1756241536503,-1461.88,0.00028219,5]
[381513945,1756241536513,-746.08,0.00028219,5]
[381513946,1756241536522,-490.0,0.00028219,5]
[381513947,1756241536532,-527.97,0.00028219,5]
[381513948,1756241536541,-919.25,0.00028219,5]
[381513949,1756241536550,-400.0,0.00028219,5]
[381513950,1756241536559,-710.46,0.00028219,5]
[381513951,1756241536568,-400.0,0.00028219,5]
[381513952,1756241536577,-400.0,0.00028219,5]
[381513953,1756241536587,-662.21,0.00028219,5]
[381513954,1756241536597,-1034.73,0.00028219,5]
[381513955,1756241536607,-400.0,0.00028219,5]
[381513956,1756241536616,-1077.22,0.00028219,5]
[381513957,1756241536626,-400.0,0.00028219,5]
[381513958,1756241536637,-1969.43,0.00028219,5]
[381513959,1756241536646,-726.54,0.00028219,5]
[381513960,1756241536661,-680.3,0.00028219,5]
[381513961,1756241536671,-1620.25,0.00028219,5]
[381513962,1756241536681,-857.8,0.00028219,5]
[381513963,1756241536692,-506.4,0.00028219,5]
[381513964,1756241536703,-980.14,0.00028219,5]
[381513965,1756241536714,-941.62,0.00028219,5]
[381513966,1756241536725,-400.0,0.00028219,5]
[381513967,1756241536736,-567.37,0.00028219,5]
[381513968,1756241536747,-846.4,0.00028219,5]
[381513969,1756241536756,-534.4,0.00028219,5]
[381513970,1756241536766,-497.96,0.00028219,5]
[381513971,1756241536777,-400.0,0.00028219,5]
[381513972,1756241536787,-400.0,0.00028219,5]
[381513973,1756241536797,-1093.43,0.00028219,5]
[381513974,1756241536806,-400.0,0.00028219,5]
[381513975,1756241536816,-1072.08,0.00028219,5]
[381513976,1756241536827,-1118.21,0.00028219,5]
[381513977,1756241536836,-623.27,0.00028219,5]
[381513978,1756241536846,-826.66,0.00028219,5]
[381513979,1756241536856,-936.92,0.00028219,5]
[381513980,1756241536866,-569.35,0.00028219,5]
[381513981,1756241536876,-635.4,0.00028219,5]
[381513982,1756241536885,-603.02,0.00028219,5]
[381513983,1756241536896,-599.94,0.00028219,5]
[381513984,1756241536907,-691.38,0.00028219,5]
[381513985,1756241536917,-428.09,0.00028219,5]
[381513986,1756241536927,-1015.37,0.00028219,5]
[381513987,1756241536937,-400.0,0.00028219,5]
[381513988,1756241536946,-400.0,0.00028219,5]
[381513989,1756241536956,-945.71,0.00028219,5]
[381513990,1756241536973,-1029.74,0.00028219,5]
[381513991,1756241536983,-524.51,0.00028219,5]
[381513992,1756241536992,-400.0,0.00028219,5]
[381513993,1756241537002,-400.0,0.00028219,5]
[381513994,1756241537012,-614.98,0.00028219,5]
[381513995,1756241537023,-400.0,0.00028219,5]
[381513996,1756241537033,-1279.45,0.00028219,5]
[381513997,1756241537043,-1154.1,0.00028219,5]
[381513998,1756241537053,-537.23,0.00028219,5]
[381513999,1756241537062,-400.0,0.00028219,5]
[381514000,1756241537072,-639.85,0.00028219,5]
[381514001,1756241537082,-400.0,0.00028219,5]
[381514002,1756241537092,-400.0,0.00028219,5]
[381514003,1756241537103,-1261.86,0.00028219,5]
[381514004,1756241537112,-1117.43,0.00028219,5]
[381514005,1756241537122,-710.8,0.00028219,5]
[381514006,1756241537132,-571.67,0.00028219,5]
[381514007,1756241537141,-400.0,0.00028219,5]
[381514008,1756241537151,-400.0,0.00028219,5]
[381514009,1756241537161,-1104.06,0.00028219,5]
[381514010,1756241537171,-400.0,0.00028219,5]
[381514011,1756241537180,-508.97745963,0.00028219,5]
[381514012,1756241537190,-623.4,0.00028219,5]
[381514013,1756241537200,-406.12,0.00028219,5]
[381514014,1756241537210,-559.0,0.00028219,5]
[381514015,1756241537219,-400.0,0.00028219,5]
[381514016,1756241537229,-1416.77,0.00028219,5]
[381514017,1756241537240,-930.74,0.00028219,5]
[381514018,1756241537250,-1054.6,0.00028219,5]
[381514019,1756241537259,-472.47,0.00028219,5]
[381514020,1756241537270,-3683.58,0.00028219,5]
[381514021,1756241537280,-1382.97,0.00028219,5]
[381514022,1756241537290,-641.52,0.00028219,5]
[381514023,1756241537299,-1315.85,0.00028219,5]
[381514024,1756241537309,-910.96,0.00028219,5]
[381514025,1756241537320,-400.0,0.00028219,5]
[381514026,1756241537330,-1338.94,0.00028219,5]
[381514027,1756241537340,-450.5,0.00028219,5]
[381514028,1756241537350,-733.69,0.00028219,5]
[381514029,1756241537361,-563.36,0.00028219,5]
[381514030,1756241537372,-400.0,0.00028219,5]
[381514031,1756241537382,-400.0,0.00028219,5]
[381514032,1756241537392,-698.14,0.00028219,5]
[381514033,1756241537402,-400.0,0.00028219,5]
[381514034,1756241537412,-894.69,0.00028219,5]
[381514035,1756241537422,-400.0,0.00028219,5]
[381514036,1756241537432,-815.18,0.00028219,5]
[381514037,1756241537442,-745.74,0.00028219,5]
[381514038,1756241537452,-1030.58,0.00028219,5]
[381514039,1756241537462,-689.42,0.00028219,5]
[381514040,1756241537471,-1133.8,0.00028219,5]
[381514041,1756241537481,-526.16,0.00028219,5]
[381514042,1756241537491,-400.0,0.00028219,5]
[381514043,1756241537502,-444.92,0.00028219,5]
[381514044,1756241537512,-779.26,0.00028219,5]
[381514045,1756241537522,-425.88,0.00028219,5]
[381514046,1756241537531,-590.63,0.00028219,5]
[381514047,1756241537541,-441.88733475,0.00028219,5]
[381514048,1756241537551,-1316.01,0.00028219,5]
[381514049,1756241537561,-656.29,0.00028219,5]
[381514050,1756241537571,-1681.38,0.00028219,5]
[381514051,1756241537580,-520.39,0.00028219,5]
[381514052,1756241537590,-849.38,0.00028219,5]
[381514053,1756241537600,-801.99,0.00028219,5]
[381514054,1756241537610,-1126.36,0.00028219,5]
[381514055,1756241537619,-400.0,0.00028219,5]
[381514056,1756241537629,-400.0,0.00028219,5]
[381514057,1756241537639,-580.22,0.00028219,5]
[381514058,1756241537649,-451.13,0.00028219,5]
[381514059,1756241537661,-466.35,0.00028219,5]
[381514060,1756241537673,-400.0,0.00028219,5]
[381514061,1756241537684,-698.14,0.00028219,5]
[381514062,1756241537694,-400.0,0.00028219,5]
[381514063,1756241537704,-400.0,0.00028219,5]
[381514064,1756241537715,-1159.46,0.00028219,5]
[381514065,1756241537725,-581.1,0.00028219,5]
[381514066,1756241537735,-400.0,0.00028219,5]
[381514067,1756241537746,-487.52,0.00028219,5]
[381514068,1756241537757,-400.0,0.00028219,5]
[381514069,1756241537767,-764.62,0.00028219,5]
[381514070,1756241537777,-962.03,0.00028219,5]
[381514071,1756241537787,-1076.23,0.00028219,5]
[381514072,1756241537797,-1297.11,0.00028219,5]
[381514073,1756241537808,-613.4,0.00028219,5]
[381514074,1756241537818,-400.0,0.00028219,5]
[381514075,1756241537829,-400.0,0.00028219,5]
[381514076,1756241537839,-732.53,0.00028219,5]
[381514077,1756241537848,-908.12,0.00028219,5]
[381514078,1756241537858,-400.0,0.00028219,5]
[381514079,1756241537867,-3151.63,0.00028219,5]
[381514080,1756241537878,-946.95,0.00028219,5]
[381514081,1756241537887,-1470.49,0.00028219,5]
[381514082,1756241537898,-472.09,0.00028219,5]
[381514083,1756241537908,-1023.81,0.00028219,5]
[381514084,1756241537917,-969.9,0.00028219,5]
[381514085,1756241537927,-160.26,0.00028219,5]
[381514086,1756241537937,-1482.66,0.00028219,5]
[381514087,1756241537947,-770.97,0.00028219,5]
[381514088,1756241537957,-663.29,0.00028219,5]
[381514089,1756241537967,-621.99,0.00028219,5]
[381514090,1756241537978,-1247.95,0.00028219,5]
[381514091,1756241537988,-400.0,0.00028219,5]
[381514092,1756241537998,-2440.81,0.00028219,5]
[381514093,1756241538008,-747.15,0.00028219,5]
[381514094,1756241538018,-577.65,0.00028219,5]
[381514095,1756241538029,-1065.94,0.00028219,5]
[381514096,1756241538039,-595.27,0.00028219,5]
[381514097,1756241538049,-413.37,0.00028219,5]
[381514098,1756241538059,-684.11,0.00028219,5]
[381514099,1756241538070,-1075.56,0.00028219,5]
[381514100,1756241538080,-1017.67,0.00028219,5]
[381514101,1756241538090,-474.57,0.00028219,5]
[381514102,1756241538100,-400.0,0.00028219,5]
[381514103,1756241538111,-1768.53,0.00028219,5]
[381514104,1756241538121,-773.11,0.00028219,5]
[381514105,1756241538131,-1280.54,0.00028219,5]
[381514106,1756241538141,-866.02,0.00028219,5]
[381514107,1756241538152,-400.0,0.00028219,5]
[381514108,1756241538162,-563.96,0.00028219,5]
[381514109,1756241538173,-591.54,0.00028219,5]
[381514110,1756241538183,-400.0,0.00028219,5]
[381514111,1756241538194,-400.0,0.00028219,5]
[381514112,1756241538204,-594.99,0.00028219,5]
[381514113,1756241538214,-1069.03,0.00028219,5]
[381514114,1756241538224,-544.93,0.00028219,5]
[381514115,1756241538234,-785.29,0.00028219,5]
[381514116,1756241538244,-400.0,0.00028219,5]
[381514117,1756241538254,-1331.95,0.00028219,5]
[381514118,1756241538264,-834.14,0.00028219,5]
[381514119,1756241538275,-400.0,0.00028219,5]
[381514120,1756241538285,-1389.58,0.00028219,5]
[381514121,1756241538295,-942.55,0.00028219,5]
[381514122,1756241538306,-400.0,0.00028219,5]
[381514123,1756241538316,-400.0,0.00028219,5]
[381514124,1756241538327,-798.92,0.00028219,5]
[381514125,1756241538338,-518.63,0.00028219,5]
[381514126,1756241538348,-923.53,0.00028219,5]
[381514127,1756241538361,-400.35,0.00028219,5]
[381514128,1756241538371,-877.81,0.00028219,5]
[381514129,1756241538381,-400.0,0.00028219,5]
[381514130,1756241538391,-400.0,0.00028219,5]
[381514131,1756241538400,-400.0,0.00028219,5]
[381514132,1756241538410,-1868.59,0.00028219,5]
[381514133,1756241538420,-400.0,0.00028219,5]
[381514134,1756241538431,-400.0,0.00028219,5]
[381514135,1756241538440,-400.0,0.00028219,5]
[381514136,1756241538451,-949.64,0.00028219,5]
[381514137,1756241538461,-614.91,0.00028219,5]
[381514138,1756241538471,-971.75,0.00028219,5]
[381514139,1756241538482,-747.47,0.00028219,5]
[381514140,1756241538492,-400.0,0.00028219,5]
[381514141,1756241538502,-400.0,0.00028219,5]
[381514142,1756241538512,-1225.88,0.00028219,5]
[381514143,1756241538522,-642.64,0.00028219,5]
[381514144,1756241538532,-410.4,0.00028219,5]
[381514145,1756241538542,-555.41,0.00028219,5]
[381514146,1756241538552,-2134.98,0.00028219,5]
[381514147,1756241538562,-817.25,0.00028219,5]
[381514148,1756241538573,-710.23,0.00028219,5]
[381514149,1756241538584,-400.0,0.00028219,5]
[381514150,1756241538594,-2102.22,0.00028219,5]
[381514151,1756241538606,-2146.73,0.00028219,5]
[381514152,1756241538615,-400.0,0.00028219,5]
[381514153,1756241538625,-568.88,0.00028219,5]
[381514154,1756241538635,-427.24,0.00028219,5]
[381514155,1756241538646,-781.34,0.00028219,5]
[381514156,1756241538657,-2123.87,0.00028219,5]
[381514157,1756241538669,-821.59,0.00028219,5]
[381514158,1756241538679,-688.3,0.00028219,5]
[381514159,1756241538689,-682.0,0.00028219,5]
[381514160,1756241538700,-960.62,0.00028219,5]
[381514161,1756241538709,-902.89,0.00028219,5]
[381514162,1756241538719,-400.0,0.00028219,5]
[381514163,1756241538730,-400.0,0.00028219,5]
[381514164,1756241538740,-918.41,0.00028219,5]
[381514165,1756241538750,-692.4,0.00028219,5]
[381514166,1756241538760,-400.0,0.00028219,5]
[381514167,1756241538771,-533.31277888,0.00028219,5]
[381514168,1756241538781,-922.92,0.00028219,5]
[381514169,1756241538791,-1407.87,0.00028219,5]
[381514170,1756241538801,-1099.6,0.00028219,5]
[381514171,1756241538812,-554.45,0.00028219,5]
[381514172,1756241538824,-400.0,0.00028219,5]
[381514173,1756241538834,-850.06,0.00028219,5]
[381514174,1756241538846,-567.63,0.00028219,5]
[381514175,1756241538859,-408.56,0.00028219,5]
[381514176,1756241538870,-400.0,0.00028219,5]
[381514177,1756241538881,-935.24,0.00028219,5]
[381514178,1756241538893,-1133.68,0.00028219,5]
[381514179,1756241538905,-3393.52,0.00028219,5]
[381514180,1756241538917,-408.77,0.00028219,5]
[381514181,1756241538928,-769.16,0.00028219,5]
[381514182,1756241538939,-542.26,0.00028219,5]
[381514183,1756241538949,-1247.48,0.00028219,5]
[381514184,1756241538966,-400.0,0.00028219,5]
[381514185,1756241538977,-760.54,0.00028219,5]
[381514186,1756241538988,-1132.06,0.00028219,5]
[381514187,1756241538999,-400.0,0.00028219,5]
[381514188,1756241539010,-455.26,0.00028219,5]
[381514189,1756241539293,-1214.03,0.00028219,5]
[381514190,1756241539308,-1726.37,0.00028219,5]
[381514191,1756241539318,-954.64,0.00028219,5]
[381514192,1756241539327,-642.74,0.00028219,5]
[381514193,1756241539337,-1460.64,0.00028219,5]
[381514194,1756241539347,-1297.46,0.00028219,5]
[381514195,1756241539370,-807.59,0.00028219,5]
[381514196,1756241539384,-887.29,0.00028219,5]
[381514197,1756241539394,-891.62,0.00028219,5]
[381514198,1756241539404,-1963.29,0.00028219,5]
[381514199,1756241539413,-400.0,0.00028219,5]
[381514200,1756241539423,-400.0,0.00028219,5]
[381514201,1756241539433,-726.58,0.00028219,5]
[381514202,1756241539442,-1288.68,0.00028219,5]
[381514203,1756241539451,-400.0,0.00028219,5]
[381514204,1756241539461,-400.0,0.00028219,5]
[381514205,1756241539471,-561.6,0.00028219,5]
[381514206,1756241539481,-608.52,0.00028219,5]
[381514207,1756241539491,-400.0,0.00028219,5]
[381514208,1756241539500,-400.0,0.00028219,5]
[381514209,1756241539510,-2099.23,0.00028219,5]
[381514210,1756241539520,-1079.39,0.00028219,5]
[381514211,1756241539530,-868.57,0.00028219,5]
[381514212,1756241539539,-2187.41,0.00028219,5]
[381514213,1756241539549,-450.49,0.00028219,5]
[381514214,1756241539559,-1088.28,0.00028219,5]
[381514215,1756241539569,-824.71,0.00028219,5]
[381514216,1756241539578,-10808.8,0.00028219,5]
[381514217,1756241539588,-591.35,0.00028219,5]
[381514218,1756241539598,-560.88,0.00028219,5]
[381514219,1756241539608,-541.88353204,0.00028219,5]
[381514220,1756241539618,-2607.87,0.00028219,5]
[381514221,1756241539628,-1077.53,0.00028219,5]
[381514222,1756241539637,-731.32,0.00028219,5]
[381514223,1756241539647,-521.9,0.00028219,5]
[381514224,1756241539658,-401.31716093,0.00028219,5]
[381514225,1756241539670,-956.5,0.00028219,5]
[381514226,1756241539680,-485.4,0.00028219,5]
[381514227,1756241539690,-700.82,0.00028219,5]
[381514228,1756241539701,-1384.11,0.00028219,5]
[381514229,1756241539711,-400.0,0.00028219,5]
[381514230,1756241539720,-1046.9,0.00028219,5]
[381514231,1756241539730,-858.68,0.00028219,5]
[381514232,1756241539740,-717.45,0.00028219,5]
[381514233,1756241539750,-1157.68,0.00028219,5]
[381514234,1756241539760,-851.79,0.00028219,5]
[381514235,1756241539769,-1137.16,0.00028219,5]
[381514236,1756241539778,-400.0,0.00028219,5]
[381514237,1756241539788,-854.33,0.00028219,5]
[381514238,1756241539798,-400.0,0.00028219,5]
[381514239,1756241539808,-728.67,0.00028219,5]
[381514240,1756241539818,-400.0,0.00028219,5]
[381514241,1756241539828,-717.13,0.00028219,5]
[381514242,1756241539839,-648.09,0.00028219,5]
[381514243,1756241539849,-1454.83,0.00028219,5]
[381514244,1756241539859,-611.66,0.00028219,5]
[381514245,1756241539869,-400.0,0.00028219,5]
[381514246,1756241539879,-721.26,0.00028219,5]
[381514247,1756241539889,-400.0,0.00028219,5]
[381514248,1756241539899,-400.0,0.00028219,5]
[381514249,1756241539909,-483.02,0.00028219,5]
[381514250,1756241539918,-513.27,0.00028219,5]
[381514251,1756241539928,-1196.81,0.00028219,5]
[381514252,1756241539937,-400.0,0.00028219,5]
[381514253,1756241539947,-1391.22,0.00028219,5]
[381514254,1756241539956,-993.22,0.00028219,5]
[381514255,1756241539966,-400.0,0.00028219,5]
[381514256,1756241539976,-400.0,0.00028219,5]
[381514257,1756241539986,-400.0,0.00028219,5]
[381514258,1756241539996,-1436.51,0.00028219,5]
[381514259,1756241540006,-1722.12,0.00028219,5]
[381514260,1756241540016,-1249.34,0.00028219,5]
[381514261,1756241540027,-531.01,0.00028219,5]
[381514262,1756241540038,-652.98,0.00028219,5]
[381514263,1756241540048,-1233.81,0.00028219,5]
[381514264,1756241540058,-530.38,0.00028219,5]
[381514265,1756241540069,-400.0,0.00028219,5]
[381514266,1756241540079,-250.0,0.00028221,5]
[381514267,1756241540088,-409.0,0.00028272,14]
[381514268,1756241540097,-519.0,0.00028302,7]
[381514269,1756241540108,-200.55954001,0.00028307,2]
[381514270,1756241540118,-359.76179104,0.00028307,2]
[381514271,1756241540128,-287.61899177,0.00028307,2]
[381514272,1756241540137,-1545.0,0.0002834,7]
[381514273,1756241540147,-22760.65570671,0.00028384,9]
[381514274,1756241540157,-3000.0,0.00028391,7]
[381514275,1756241540167,-1500.0,0.00028391,7]
[381514276,1756241540176,-1600.0,0.00028391,7]
[381514277,1756241540186,-164.44854057,0.00028393,2]
[381514278,1756241540196,-1500.0,0.00028468,5]
[381514279,1756241540206,-917.10743411,0.00028468,5]
[381514280,1756241540215,-1500.0,0.00028468,5]
[381514281,1756241540225,-1500.0,0.00028468,5]
[381514282,1756241540235,-1500.0,0.00028468,5]
[381514283,1756241540244,-1023.2209104,0.00028473,2]
[381514284,1756241540254,-2752.888822,0.00028473,2]
[381514285,1756241540263,-409.0,0.00028479,14]
[381514286,1756241540273,-729794.64578476,0.00028493,2]
[381514287,1756241540282,-183143.95598677,0.00028493,2]
[381514289,1756241541818,-458.00067,0.00028493,2]
[381514290,1756241541864,-578.51776381,0.000248,7]
[381514291,1756241541895,-2556.97675019,0.000248,7]
[381514292,1756241541910,-229.02324981,0.000249,7]
[381514294,1756241541928,-221.33226719,0.000249,7]
[381514295,1756241541944,-400.0,0.00027671,5]
[381514296,1756241541958,-4138.06773281,0.00028493,2]
[381514297,1756241542857,-450.355517,0.000247,7]